[Event "Titled Tuesday Blitz November 22 Early 2022"]
[White "Lohani, Sujana"]
[Black "Nissinen, Niilo Man"]
[WhiteFideId "12311987"]
[BlackFideId "30950767"]
[WhiteElo "1691"]
[BlackElo "1896"]
[Result "0-1"]
[Round "05"]
[TimeControl "180+1"]
[Date "2022.11.23"]
[WhiteClock "0:00:01"]
[BlackClock "0:00:21"]

1. d4 {[%clk 0:03:00]}  Nf6 {[%clk 0:02:52]} 2. Nf3 {[%clk 0:03:01]}  g6 {[%clk 0:02:51]} 3. g3 {[%clk 0:02:53]}  Bg7 {[%clk 0:02:50]} 4. Bg2 {[%clk 0:02:54]}  O-O {[%clk 0:02:50]} 5. O-O {[%clk 0:02:53]}  c5 {[%clk 0:02:45]} 6. d5 {[%clk 0:02:53]}  d6 {[%clk 0:02:42]} 7. c4 {[%clk 0:02:53]}  e6 {[%clk 0:02:40]} 8. Nc3 {[%clk 0:02:50]}  a6 {[%clk 0:02:39]} 9. e4 {[%clk 0:02:50]}  Ne8 {[%clk 0:02:38]} 10. Qc2 {[%clk 0:02:25]}  f5 {[%clk 0:02:26]} 11. dxe6 {[%clk 0:02:16]}  Bxe6 {[%clk 0:02:23]} 12. Nd5 {[%clk 0:02:10]}  Nc6 {[%clk 0:02:04]} 13. Bg5 {[%clk 0:02:05]}  Qa5 {[%clk 0:01:51]} 14. a3 {[%clk 0:01:50]}  fxe4 {[%clk 0:01:38]} 15. Qxe4 {[%clk 0:01:49]}  Bf5 {[%clk 0:01:39]} 16. Qe3 {[%clk 0:01:31]}  Bxb2 {[%clk 0:01:31]} 17. Ra2 {[%clk 0:01:22]}  Bg7 {[%clk 0:01:28]} 18. Nh4 {[%clk 0:01:06]}  Bd4 {[%clk 0:01:12]} 19. Qe2 {[%clk 0:00:39]}  Ng7 {[%clk 0:00:55]} 20. Nxf5 {[%clk 0:00:37]}  Nxf5 {[%clk 0:00:55]} 21. Qe6+ {[%clk 0:00:36]}  Kg7 {[%clk 0:00:52]} 22. Nf4 {[%clk 0:00:15]}  Ne5 {[%clk 0:00:39]} 23. Bd5 {[%clk 0:00:11]}  Rae8 {[%clk 0:00:36]} 24. Nh5+ {[%clk 0:00:04]}  gxh5 {[%clk 0:00:36]} 25. Bh6+ {[%clk 0:00:03]}  Kh8 {[%clk 0:00:34]} 26. Bxf8 {[%clk 0:00:01]}  Rxe6 {[%clk 0:00:34]} 27. Bxe6 {[%clk 0:00:01]}  Nf3+ {[%clk 0:00:26]} 28. Kg2 {[%clk 0:00:01]}  Qd8 {[%clk 0:00:21]} 0-1


[Site "https://www.chess.com"]

[Event "Titled Tuesday Blitz November 22 Early 2022"]
[White "Madaminov, Mukhiddin"]
[Black "Csonka, Balazs"]
[WhiteFideId "14210703"]
[BlackFideId "742910"]
[WhiteElo "2341"]
[BlackElo "2404"]
[Result "1-0"]
[Round "05"]
[TimeControl "180+1"]
[Date "2022.11.22"]
[WhiteClock "0:00:15"]
[BlackClock "0:00:01"]

1. d4 {[%clk 0:03:00]}  Nf6 {[%clk 0:02:58]} 2. Nc3 {[%clk 0:03:01]}  e6 {[%clk 0:02:57]} 3. Bf4 {[%clk 0:03:00]}  Bb4 {[%clk 0:02:56]} 4. e3 {[%clk 0:03:00]}  Nd5 {[%clk 0:02:48]} 5. Ne2 {[%clk 0:03:01]}  Nxf4 {[%clk 0:02:42]} 6. Nxf4 {[%clk 0:02:59]}  Bxc3+ {[%clk 0:02:35]} 7. bxc3 {[%clk 0:02:59]}  d6 {[%clk 0:02:35]} 8. Bd3 {[%clk 0:02:58]}  e5 {[%clk 0:02:31]} 9. Nh5 {[%clk 0:02:39]}  g6 {[%clk 0:02:21]} 10. Ng3 {[%clk 0:02:38]}  Nd7 {[%clk 0:02:16]} 11. h4 {[%clk 0:02:28]}  h5 {[%clk 0:02:12]} 12. Rb1 {[%clk 0:02:11]}  Qe7 {[%clk 0:02:08]} 13. Ne4 {[%clk 0:02:07]}  b6 {[%clk 0:01:54]} 14. Ng5 {[%clk 0:01:50]}  Bb7 {[%clk 0:01:52]} 15. O-O {[%clk 0:01:50]}  O-O {[%clk 0:01:42]} 16. c4 {[%clk 0:01:28]}  Kg7 {[%clk 0:01:36]} 17. c3 {[%clk 0:01:23]}  Nf6 {[%clk 0:01:23]} 18. Bc2 {[%clk 0:01:19]}  Nh7 {[%clk 0:01:06]} 19. Nxh7 {[%clk 0:01:18]}  Kxh7 {[%clk 0:01:07]} 20. Qxh5+ {[%clk 0:01:18]}  Kg7 {[%clk 0:01:07]} 21. Qg4 {[%clk 0:01:16]}  Rh8 {[%clk 0:01:01]} 22. g3 {[%clk 0:01:10]}  Rh5 {[%clk 0:00:51]} 23. e4 {[%clk 0:01:02]}  Rah8 {[%clk 0:00:49]} 24. d5 {[%clk 0:00:59]}  Bc8 {[%clk 0:00:30]} 25. Qf3 {[%clk 0:00:53]}  g5 {[%clk 0:00:30]} 26. Kg2 {[%clk 0:00:53]}  gxh4 {[%clk 0:00:26]} 27. Rh1 {[%clk 0:00:54]}  Qg5 {[%clk 0:00:23]} 28. Rbg1 {[%clk 0:00:38]}  Bg4 {[%clk 0:00:15]} 29. Qd3 {[%clk 0:00:36]}  h3+ {[%clk 0:00:07]} 30. Kh2 {[%clk 0:00:33]}  R8h6 {[%clk 0:00:07]} 31. Bd1 {[%clk 0:00:30]}  Rf6 {[%clk 0:00:07]} 32. f4 {[%clk 0:00:19]}  exf4 {[%clk 0:00:05]} 33. Bxg4 {[%clk 0:00:19]}  Rhh6 {[%clk 0:00:02]} 34. Bf5 {[%clk 0:00:19]}  f3 {[%clk 0:00:01]} 35. Rf1 {[%clk 0:00:15]} 1-0


[Site "https://www.chess.com"]

[Event "Titled Tuesday Blitz November 22 Early 2022"]
[White "Makhmudov, Shukhrat"]
[Black "Jeet, Jain"]
[WhiteFideId "14200775"]
[BlackFideId "5073022"]
[WhiteElo "2135"]
[BlackElo "2067"]
[Result "0-1"]
[Round "05"]
[TimeControl "180+1"]
[Date "2022.11.23"]
[WhiteClock "0:00:22"]
[BlackClock "0:01:50"]

1. d4 {[%clk 0:02:56]}  Nf6 {[%clk 0:02:57]} 2. c4 {[%clk 0:02:56]}  b6 {[%clk 0:02:56]} 3. g3 {[%clk 0:02:56]}  Bb7 {[%clk 0:02:56]} 4. Nf3 {[%clk 0:02:57]}  g6 {[%clk 0:02:56]} 5. Bg2 {[%clk 0:02:57]}  Bg7 {[%clk 0:02:56]} 6. O-O {[%clk 0:02:57]}  O-O {[%clk 0:02:57]} 7. Nc3 {[%clk 0:02:58]}  d6 {[%clk 0:02:49]} 8. Re1 {[%clk 0:02:57]}  Nbd7 {[%clk 0:02:48]} 9. e4 {[%clk 0:02:57]}  e5 {[%clk 0:02:44]} 10. d5 {[%clk 0:02:54]}  h6 {[%clk 0:02:38]} 11. h3 {[%clk 0:02:50]}  Nh7 {[%clk 0:02:31]} 12. Nh2 {[%clk 0:02:28]}  f5 {[%clk 0:02:26]} 13. Bd2 {[%clk 0:01:43]}  f4 {[%clk 0:02:23]} 14. gxf4 {[%clk 0:01:36]}  exf4 {[%clk 0:02:23]} 15. f3 {[%clk 0:01:31]}  Ne5 {[%clk 0:02:18]} 16. b3 {[%clk 0:01:17]}  h5 {[%clk 0:02:15]} 17. Rf1 {[%clk 0:01:04]}  Bc8 {[%clk 0:02:10]} 18. Qc1 {[%clk 0:01:00]}  Qh4 {[%clk 0:01:51]} 19. Be1 {[%clk 0:00:52]}  Qf6 {[%clk 0:01:51]} 20. h4 {[%clk 0:00:48]}  Nd3 {[%clk 0:01:50]} 21. Qd2 {[%clk 0:00:34]}  Nxe1 {[%clk 0:01:50]} 22. Qxe1 {[%clk 0:00:22]}  Qxc3 {[%clk 0:01:50]} 23. Qxc3 {[%clk 0:00:22]}  Bxc3 {[%clk 0:01:51]} 24. Rac1 {[%clk 0:00:22]}  Bf6 {[%clk 0:01:50]} 0-1


[Site "https://www.chess.com"]

[Event "Titled Tuesday Blitz November 22 Early 2022"]
[White "Miszler, Levente"]
[Black "Gurevich, Dmitry"]
[WhiteFideId "763276"]
[BlackFideId "2000407"]
[WhiteElo "2176"]
[BlackElo "2506"]
[Result "1-0"]
[Round "05"]
[TimeControl "180+1"]
[Date "2022.11.23"]
[WhiteClock "0:00:35"]
[BlackClock "0:00:04"]

1. Nf3 {[%clk 0:03:00]}  Nf6 {[%clk 0:02:58]} 2. c4 {[%clk 0:02:57]}  c5 {[%clk 0:02:53]} 3. g3 {[%clk 0:02:57]}  b6 {[%clk 0:02:52]} 4. Bg2 {[%clk 0:02:57]}  Bb7 {[%clk 0:02:53]} 5. O-O {[%clk 0:02:58]}  g6 {[%clk 0:02:53]} 6. d4 {[%clk 0:02:58]}  cxd4 {[%clk 0:02:53]} 7. Qxd4 {[%clk 0:02:59]}  Bg7 {[%clk 0:02:52]} 8. Nc3 {[%clk 0:02:59]}  d6 {[%clk 0:02:52]} 9. Qh4 {[%clk 0:02:57]}  h6 {[%clk 0:02:50]} 10. Rd1 {[%clk 0:02:53]}  Nbd7 {[%clk 0:02:48]} 11. Nd4 {[%clk 0:02:39]}  Bxg2 {[%clk 0:02:44]} 12. Kxg2 {[%clk 0:02:39]}  Qc8 {[%clk 0:02:39]} 13. b3 {[%clk 0:02:33]}  Qb7+ {[%clk 0:02:39]} 14. Kg1 {[%clk 0:02:33]}  Rc8 {[%clk 0:02:39]} 15. Bb2 {[%clk 0:02:33]}  Rc5 {[%clk 0:02:32]} 16. Qh3 {[%clk 0:02:13]}  O-O {[%clk 0:02:23]} 17. Qg2 {[%clk 0:02:12]}  Qxg2+ {[%clk 0:02:22]} 18. Kxg2 {[%clk 0:02:12]}  a6 {[%clk 0:02:16]} 19. Na4 {[%clk 0:02:11]}  Rc7 {[%clk 0:02:12]} 20. Rac1 {[%clk 0:02:10]}  Rb8 {[%clk 0:02:08]} 21. Nc3 {[%clk 0:02:02]}  Nc5 {[%clk 0:01:57]} 22. Nd5 {[%clk 0:02:00]}  Nxd5 {[%clk 0:01:46]} 23. cxd5 {[%clk 0:02:01]}  Rbc8 {[%clk 0:01:35]} 24. Rc2 {[%clk 0:01:46]}  Bxd4 {[%clk 0:01:23]} 25. Bxd4 {[%clk 0:01:45]}  Nd7 {[%clk 0:01:21]} 26. Rxc7 {[%clk 0:01:42]}  Rxc7 {[%clk 0:01:21]} 27. Rd2 {[%clk 0:01:43]}  b5 {[%clk 0:01:19]} 28. Bb2 {[%clk 0:01:40]}  f5 {[%clk 0:01:14]} 29. f4 {[%clk 0:01:38]}  Kf7 {[%clk 0:01:13]} 30. Kf3 {[%clk 0:01:38]}  Nf6 {[%clk 0:01:13]} 31. Bxf6 {[%clk 0:01:36]}  Kxf6 {[%clk 0:01:12]} 32. e4 {[%clk 0:01:35]}  Rc3+ {[%clk 0:01:07]} 33. Ke2 {[%clk 0:01:34]}  fxe4 {[%clk 0:01:07]} 34. g4 {[%clk 0:01:33]}  h5 {[%clk 0:01:07]} 35. Rd4 {[%clk 0:01:31]}  hxg4 {[%clk 0:01:00]} 36. Rxe4 {[%clk 0:01:31]}  Rc2+ {[%clk 0:01:00]} 37. Ke3 {[%clk 0:01:31]}  Rxa2 {[%clk 0:00:57]} 38. Re6+ {[%clk 0:01:29]}  Kf7 {[%clk 0:00:57]} 39. f5 {[%clk 0:01:29]}  gxf5 {[%clk 0:00:55]} 40. Kf4 {[%clk 0:01:28]}  Rxh2 {[%clk 0:00:48]} 41. Kxf5 {[%clk 0:01:28]}  Rh5+ {[%clk 0:00:48]} 42. Kxg4 {[%clk 0:01:27]}  Rxd5 {[%clk 0:00:48]} 43. Re3 {[%clk 0:01:26]}  e6 {[%clk 0:00:44]} 44. Rc3 {[%clk 0:01:23]}  Kg6 {[%clk 0:00:39]} 45. Rc6 {[%clk 0:01:22]}  Rd4+ {[%clk 0:00:37]} 46. Kf3 {[%clk 0:01:21]}  Kf5 {[%clk 0:00:36]} 47. Rxa6 {[%clk 0:01:19]}  Ke5 {[%clk 0:00:36]} 48. Ke2 {[%clk 0:01:19]}  Rb4 {[%clk 0:00:35]} 49. Ra3 {[%clk 0:01:18]}  d5 {[%clk 0:00:34]} 50. Kd2 {[%clk 0:01:19]}  Kd6 {[%clk 0:00:33]} 51. Kc3 {[%clk 0:01:18]}  Kc5 {[%clk 0:00:31]} 52. Ra8 {[%clk 0:01:12]}  Re4 {[%clk 0:00:27]} 53. b4+ {[%clk 0:01:07]}  Kd6 {[%clk 0:00:26]} 54. Rb8 {[%clk 0:01:06]}  Re3+ {[%clk 0:00:22]} 55. Kc2 {[%clk 0:00:55]}  Ke5 {[%clk 0:00:20]} 56. Rxb5 {[%clk 0:00:55]}  Kd4 {[%clk 0:00:20]} 57. Rb8 {[%clk 0:00:52]}  e5 {[%clk 0:00:20]} 58. b5 {[%clk 0:00:52]}  Rc3+ {[%clk 0:00:19]} 59. Kd2 {[%clk 0:00:51]}  Rb3 {[%clk 0:00:18]} 60. b6 {[%clk 0:00:51]}  e4 {[%clk 0:00:17]} 61. b7 {[%clk 0:00:49]}  e3+ {[%clk 0:00:17]} 62. Kc2 {[%clk 0:00:49]}  Rb5 {[%clk 0:00:15]} 63. Kc1 {[%clk 0:00:46]}  Rb6 {[%clk 0:00:14]} 64. Kc2 {[%clk 0:00:44]}  Rc6+ {[%clk 0:00:14]} 65. Kd1 {[%clk 0:00:44]}  Rc7 {[%clk 0:00:13]} 66. Ke2 {[%clk 0:00:42]}  Rc2+ {[%clk 0:00:12]} 67. Kd1 {[%clk 0:00:41]}  Rc4 {[%clk 0:00:09]} 68. Re8 {[%clk 0:00:38]}  e2+ {[%clk 0:00:04]} 69. Kxe2 {[%clk 0:00:35]} 1-0


[Site "https://www.chess.com"]

[Event "Titled Tuesday Blitz November 22 Early 2022"]
[White "Mohammed, Dilshad"]
[Black "Rakhmanov, Aleksandr"]
[WhiteFideId "5050421"]
[BlackFideId "4173708"]
[WhiteElo "2102"]
[BlackElo "2530"]
[Result "0-1"]
[Round "05"]
[TimeControl "180+1"]
[Date "2022.11.23"]
[WhiteClock "0:00:01"]
[BlackClock "0:00:23"]

1. Nf3 {[%clk 0:02:44]}  d5 {[%clk 0:02:59]} 2. d4 {[%clk 0:02:43]}  e6 {[%clk 0:02:57]} 3. e3 {[%clk 0:02:42]}  a6 {[%clk 0:02:56]} 4. Bd3 {[%clk 0:02:42]}  c5 {[%clk 0:02:57]} 5. c3 {[%clk 0:02:42]}  Nc6 {[%clk 0:02:56]} 6. O-O {[%clk 0:02:38]}  Qc7 {[%clk 0:02:57]} 7. Re1 {[%clk 0:02:38]}  Nf6 {[%clk 0:02:57]} 8. Nbd2 {[%clk 0:02:38]}  Bd6 {[%clk 0:02:55]} 9. Nf1 {[%clk 0:02:38]}  O-O {[%clk 0:02:52]} 10. dxc5 {[%clk 0:02:38]}  Bxc5 {[%clk 0:02:52]} 11. e4 {[%clk 0:02:36]}  dxe4 {[%clk 0:02:51]} 12. Bxe4 {[%clk 0:02:35]}  Nxe4 {[%clk 0:02:52]} 13. Rxe4 {[%clk 0:02:35]}  e5 {[%clk 0:02:48]} 14. Be3 {[%clk 0:02:26]}  Be7 {[%clk 0:02:31]} 15. Bg5 {[%clk 0:02:15]}  f6 {[%clk 0:02:27]} 16. Qb3+ {[%clk 0:02:04]}  Kh8 {[%clk 0:02:27]} 17. Bh4 {[%clk 0:01:54]}  Bf5 {[%clk 0:02:24]} 18. Ree1 {[%clk 0:01:53]}  Na5 {[%clk 0:02:19]} 19. Qa4 {[%clk 0:01:51]}  b5 {[%clk 0:02:16]} 20. Qd1 {[%clk 0:01:47]}  Rad8 {[%clk 0:02:14]} 21. Qe2 {[%clk 0:01:35]}  Bd3 {[%clk 0:02:11]} 22. Qe3 {[%clk 0:01:35]}  Nc4 {[%clk 0:02:06]} 23. Qc1 {[%clk 0:01:35]}  Bc5 {[%clk 0:02:01]} 24. Bg3 {[%clk 0:01:19]}  Qb6 {[%clk 0:01:55]} 25. N1d2 {[%clk 0:01:10]}  Nxd2 {[%clk 0:01:30]} 26. Qxd2 {[%clk 0:01:07]}  e4 {[%clk 0:01:27]} 27. Nh4 {[%clk 0:01:02]}  f5 {[%clk 0:00:58]} 28. Be5 {[%clk 0:00:44]}  Qe6 {[%clk 0:00:54]} 29. Qf4 {[%clk 0:00:41]}  Rd5 {[%clk 0:00:45]} 30. Bc7 {[%clk 0:00:31]}  Qf6 {[%clk 0:00:45]} 31. Nf3 {[%clk 0:00:08]}  exf3 {[%clk 0:00:43]} 32. Qxf3 {[%clk 0:00:07]}  Be4 {[%clk 0:00:42]} 33. Qh3 {[%clk 0:00:07]}  Rd2 {[%clk 0:00:37]} 34. Bg3 {[%clk 0:00:05]}  Rxb2 {[%clk 0:00:33]} 35. Rad1 {[%clk 0:00:03]}  h6 {[%clk 0:00:31]} 36. Kh1 {[%clk 0:00:03]}  Bxf2 {[%clk 0:00:28]} 37. Rd6 {[%clk 0:00:02]}  Bxe1 {[%clk 0:00:23]} 38. Rxf6 {[%clk 0:00:01]}  Rxf6 {[%clk 0:00:23]} 0-1


[Site "https://www.chess.com"]

[Event "Titled Tuesday Blitz November 22 Early 2022"]
[White "Omariev, Maksim"]
[Black "Ginzburg, Yakov"]
[WhiteFideId "4193423"]
[BlackFideId "4157176"]
[WhiteElo "2448"]
[BlackElo "2305"]
[Result "0-1"]
[Round "05"]
[TimeControl "180+1"]
[Date "2022.11.23"]
[WhiteClock "0:00:02"]
[BlackClock "0:00:29"]

1. g4 {[%clk 0:03:00]}  e5 {[%clk 0:02:56]} 2. Bg2 {[%clk 0:03:00]}  d5 {[%clk 0:02:56]} 3. d4 {[%clk 0:03:00]}  e4 {[%clk 0:02:56]} 4. g5 {[%clk 0:02:55]}  h6 {[%clk 0:02:53]} 5. h4 {[%clk 0:02:49]}  hxg5 {[%clk 0:02:53]} 6. hxg5 {[%clk 0:02:50]}  Rxh1 {[%clk 0:02:53]} 7. Bxh1 {[%clk 0:02:50]}  Qd6 {[%clk 0:02:52]} 8. f4 {[%clk 0:02:40]}  exf3 {[%clk 0:02:49]} 9. Nxf3 {[%clk 0:02:41]}  Qg3+ {[%clk 0:02:42]} 10. Kd2 {[%clk 0:02:39]}  Nc6 {[%clk 0:02:41]} 11. c3 {[%clk 0:02:32]}  Bf5 {[%clk 0:02:41]} 12. Qg1 {[%clk 0:02:26]}  Bd6 {[%clk 0:02:34]} 13. Qxg3 {[%clk 0:01:53]}  Bxg3 {[%clk 0:02:34]} 14. Na3 {[%clk 0:01:54]}  O-O-O {[%clk 0:02:32]} 15. Nc2 {[%clk 0:01:37]}  Nge7 {[%clk 0:02:26]} 16. Ne3 {[%clk 0:01:35]}  Be4 {[%clk 0:02:25]} 17. Nf1 {[%clk 0:01:26]}  Bf4+ {[%clk 0:02:24]} 18. Ke1 {[%clk 0:01:25]}  Bd6 {[%clk 0:02:21]} 19. Kf2 {[%clk 0:01:21]}  Rh8 {[%clk 0:02:20]} 20. Bg2 {[%clk 0:01:18]}  Nf5 {[%clk 0:02:19]} 21. Bd2 {[%clk 0:01:09]}  Nce7 {[%clk 0:02:18]} 22. Ne1 {[%clk 0:00:52]}  Ng6 {[%clk 0:02:13]} 23. Bxe4 {[%clk 0:00:46]}  dxe4 {[%clk 0:02:14]} 24. Ng2 {[%clk 0:00:46]}  Rh1 {[%clk 0:02:01]} 25. Rc1 {[%clk 0:00:46]}  Ngh4 {[%clk 0:01:47]} 26. Nxh4 {[%clk 0:00:43]}  Rxh4 {[%clk 0:01:47]} 27. Ne3 {[%clk 0:00:29]}  Rh2+ {[%clk 0:01:44]} 28. Ke1 {[%clk 0:00:12]}  Ng3 {[%clk 0:01:36]} 29. Kd1 {[%clk 0:00:10]}  Nxe2 {[%clk 0:01:35]} 30. Rb1 {[%clk 0:00:08]}  Ng1 {[%clk 0:01:20]} 31. Nf5 {[%clk 0:00:03]}  Nf3 {[%clk 0:01:16]} 32. Nxd6+ {[%clk 0:00:03]}  cxd6 {[%clk 0:01:15]} 33. Bf4 {[%clk 0:00:04]}  Rg2 {[%clk 0:01:06]} 34. a4 {[%clk 0:00:04]}  Kd7 {[%clk 0:01:04]} 35. a5 {[%clk 0:00:05]}  a6 {[%clk 0:01:01]} 36. b4 {[%clk 0:00:05]}  Kc6 {[%clk 0:00:59]} 37. Be3 {[%clk 0:00:04]}  d5 {[%clk 0:00:58]} 38. Bf4 {[%clk 0:00:03]}  Kb5 {[%clk 0:00:58]} 39. Rc1 {[%clk 0:00:03]}  Kc4 {[%clk 0:00:55]} 40. Rc2 {[%clk 0:00:04]}  Rg1+ {[%clk 0:00:52]} 41. Ke2 {[%clk 0:00:04]}  Rg2+ {[%clk 0:00:47]} 42. Kd1 {[%clk 0:00:04]}  Rg1+ {[%clk 0:00:46]} 43. Ke2 {[%clk 0:00:04]}  Nxg5 {[%clk 0:00:46]} 44. Kf2 {[%clk 0:00:03]}  Nh3+ {[%clk 0:00:46]} 45. Ke3 {[%clk 0:00:02]}  Re1+ {[%clk 0:00:38]} 46. Kd2 {[%clk 0:00:03]}  Rf1 {[%clk 0:00:38]} 47. Be5 {[%clk 0:00:03]}  f6 {[%clk 0:00:34]} 48. Bd6 {[%clk 0:00:03]}  g5 {[%clk 0:00:32]} 49. Ra2 {[%clk 0:00:02]}  Rf2+ {[%clk 0:00:31]} 50. Ke3 {[%clk 0:00:02]}  Rxa2 {[%clk 0:00:30]} 51. b5 {[%clk 0:00:03]}  f5 {[%clk 0:00:29]} 52. bxa6 {[%clk 0:00:02]}  f4+ {[%clk 0:00:29]} 53. Bxf4 {[%clk 0:00:02]}  gxf4# {[%clk 0:00:29]} 0-1


[Site "https://www.chess.com"]

[Event "Titled Tuesday Blitz November 22 Early 2022"]
[White "Osmonbekov, Talaibek"]
[Black "Fathy, Elameir"]
[WhiteFideId "2017253"]
[BlackFideId "10600396"]
[WhiteElo "2135"]
[BlackElo "2311"]
[Result "0-1"]
[Round "05"]
[TimeControl "180+1"]
[Date "2022.11.23"]
[WhiteClock "0:00:34"]
[BlackClock "0:00:57"]

1. d4 {[%clk 0:03:00]}  d5 {[%clk 0:03:00]} 2. Bf4 {[%clk 0:02:59]}  c5 {[%clk 0:02:59]} 3. e3 {[%clk 0:02:59]}  Nc6 {[%clk 0:03:00]} 4. Nc3 {[%clk 0:02:59]}  cxd4 {[%clk 0:02:58]} 5. exd4 {[%clk 0:02:59]}  Bf5 {[%clk 0:02:59]} 6. Nf3 {[%clk 0:02:54]}  e6 {[%clk 0:02:56]} 7. Ne5 {[%clk 0:02:45]}  Nf6 {[%clk 0:02:40]} 8. g4 {[%clk 0:02:40]}  Nxe5 {[%clk 0:02:38]} 9. gxf5 {[%clk 0:02:35]}  Nc6 {[%clk 0:02:23]} 10. fxe6 {[%clk 0:02:25]}  fxe6 {[%clk 0:02:24]} 11. Rg1 {[%clk 0:02:19]}  a6 {[%clk 0:02:03]} 12. Bh3 {[%clk 0:01:50]}  Qb6 {[%clk 0:01:47]} 13. Na4 {[%clk 0:01:29]}  Qxd4 {[%clk 0:01:38]} 14. Qxd4 {[%clk 0:01:28]}  Nxd4 {[%clk 0:01:38]} 15. O-O-O {[%clk 0:01:29]}  Ne2+ {[%clk 0:01:37]} 16. Kb1 {[%clk 0:01:28]}  Nxf4 {[%clk 0:01:38]} 17. Nb6 {[%clk 0:01:18]}  Nxh3 {[%clk 0:01:32]} 18. Rge1 {[%clk 0:01:12]}  Rd8 {[%clk 0:01:30]} 19. Rxe6+ {[%clk 0:01:04]}  Kf7 {[%clk 0:01:30]} 20. Re3 {[%clk 0:01:04]}  Bc5 {[%clk 0:01:22]} 21. Rxh3 {[%clk 0:01:03]}  Bxb6 {[%clk 0:01:22]} 22. Rb3 {[%clk 0:01:03]}  Rd6 {[%clk 0:01:19]} 23. c4 {[%clk 0:01:00]}  Rhd8 {[%clk 0:01:08]} 24. cxd5 {[%clk 0:00:57]}  Rxd5 {[%clk 0:01:06]} 25. Rxd5 {[%clk 0:00:49]}  Nxd5 {[%clk 0:01:07]} 26. Rf3+ {[%clk 0:00:49]}  Ke6 {[%clk 0:01:04]} 27. Rd3 {[%clk 0:00:49]}  Rf8 {[%clk 0:01:03]} 28. f3 {[%clk 0:00:48]}  g6 {[%clk 0:01:01]} 29. a3 {[%clk 0:00:46]}  Rf4 {[%clk 0:01:01]} 30. b4 {[%clk 0:00:46]}  Rd4 {[%clk 0:01:00]} 31. Rb3 {[%clk 0:00:44]}  Rd2 {[%clk 0:00:59]} 32. h4 {[%clk 0:00:41]}  Rh2 {[%clk 0:00:58]} 33. b5 {[%clk 0:00:41]}  a5 {[%clk 0:00:58]} 34. Rd3 {[%clk 0:00:35]}  Rxh4 {[%clk 0:00:58]} 35. Rd1 {[%clk 0:00:34]}  Rh2 {[%clk 0:00:57]} 36. Re1+ {[%clk 0:00:34]}  Ne3 {[%clk 0:00:57]} 0-1


[Site "https://www.chess.com"]

[Event "Titled Tuesday Blitz November 22 Early 2022"]
[White "Ostrovskiy, Aleksandr"]
[Black "Oparin, Grigoriy"]
[WhiteFideId "2034239"]
[BlackFideId "24125890"]
[WhiteElo "2340"]
[BlackElo "2639"]
[Result "0-1"]
[Round "05"]
[TimeControl "180+1"]
[Date "2022.11.22"]
[WhiteClock "0:00:01"]
[BlackClock "0:00:05"]

1. e4 {[%clk 0:02:54]}  c5 {[%clk 0:02:58]} 2. Nc3 {[%clk 0:02:54]}  a6 {[%clk 0:02:56]} 3. d4 {[%clk 0:02:49]}  cxd4 {[%clk 0:02:56]} 4. Qxd4 {[%clk 0:02:50]}  Nc6 {[%clk 0:02:56]} 5. Qd2 {[%clk 0:02:50]}  b5 {[%clk 0:02:55]} 6. b3 {[%clk 0:02:49]}  Bb7 {[%clk 0:02:54]} 7. Bb2 {[%clk 0:02:49]}  e6 {[%clk 0:02:55]} 8. O-O-O {[%clk 0:02:49]}  Qc7 {[%clk 0:02:53]} 9. Nd5 {[%clk 0:02:40]}  exd5 {[%clk 0:02:18]} 10. exd5 {[%clk 0:02:40]}  Nd8 {[%clk 0:02:19]} 11. Qe3+ {[%clk 0:02:19]}  Ne6 {[%clk 0:02:19]} 12. dxe6 {[%clk 0:02:15]}  dxe6 {[%clk 0:02:20]} 13. Nf3 {[%clk 0:02:08]}  Nf6 {[%clk 0:02:20]} 14. Bd3 {[%clk 0:02:06]}  Nd5 {[%clk 0:02:04]} 15. Qg5 {[%clk 0:01:39]}  h6 {[%clk 0:02:02]} 16. Qg4 {[%clk 0:01:33]}  Qf4+ {[%clk 0:02:01]} 17. Qxf4 {[%clk 0:01:30]}  Nxf4 {[%clk 0:02:01]} 18. Bf1 {[%clk 0:01:11]}  f6 {[%clk 0:01:55]} 19. Rg1 {[%clk 0:01:06]}  Rc8 {[%clk 0:01:52]} 20. Nd4 {[%clk 0:01:03]}  e5 {[%clk 0:01:45]} 21. Nf5 {[%clk 0:01:03]}  Be4 {[%clk 0:01:39]} 22. Ne3 {[%clk 0:01:01]}  Bc5 {[%clk 0:01:39]} 23. Rd2 {[%clk 0:00:57]}  Ke7 {[%clk 0:01:24]} 24. g3 {[%clk 0:00:49]}  Bxe3 {[%clk 0:01:23]} 25. fxe3 {[%clk 0:00:50]}  Nd5 {[%clk 0:01:23]} 26. Bd3 {[%clk 0:00:33]}  Bxd3 {[%clk 0:01:23]} 27. Rxd3 {[%clk 0:00:34]}  Ke6 {[%clk 0:01:05]} 28. Rgd1 {[%clk 0:00:28]}  Nb4 {[%clk 0:01:05]} 29. Rd6+ {[%clk 0:00:28]}  Kf5 {[%clk 0:01:05]} 30. c3 {[%clk 0:00:18]}  Nxa2+ {[%clk 0:00:54]} 31. Kd2 {[%clk 0:00:17]}  Rhd8 {[%clk 0:00:19]} 32. Rxd8 {[%clk 0:00:16]}  Rxd8+ {[%clk 0:00:20]} 33. Kc2 {[%clk 0:00:17]}  Rxd1 {[%clk 0:00:19]} 34. Kxd1 {[%clk 0:00:18]}  b4 {[%clk 0:00:16]} 35. c4 {[%clk 0:00:17]}  Ke6 {[%clk 0:00:14]} 36. Kc2 {[%clk 0:00:16]}  Kd6 {[%clk 0:00:13]} 37. Kb1 {[%clk 0:00:15]}  Nc3+ {[%clk 0:00:13]} 38. Bxc3 {[%clk 0:00:16]}  bxc3 {[%clk 0:00:14]} 39. Kc2 {[%clk 0:00:16]}  Kc5 {[%clk 0:00:14]} 40. Kxc3 {[%clk 0:00:17]}  a5 {[%clk 0:00:15]} 41. e4 {[%clk 0:00:17]}  g6 {[%clk 0:00:15]} 42. g4 {[%clk 0:00:17]}  h5 {[%clk 0:00:06]} 43. gxh5 {[%clk 0:00:18]}  gxh5 {[%clk 0:00:07]} 44. h4 {[%clk 0:00:18]}  Kb6 {[%clk 0:00:04]} 45. b4 {[%clk 0:00:18]}  a4 {[%clk 0:00:04]} 46. Kb2 {[%clk 0:00:13]}  f5 {[%clk 0:00:04]} 47. exf5 {[%clk 0:00:13]}  e4 {[%clk 0:00:05]} 48. f6 {[%clk 0:00:14]}  e3 {[%clk 0:00:06]} 49. f7 {[%clk 0:00:14]}  e2 {[%clk 0:00:06]} 50. f8=Q {[%clk 0:00:15]}  e1=Q {[%clk 0:00:07]} 51. Qc5+ {[%clk 0:00:15]}  Kb7 {[%clk 0:00:07]} 52. Qd5+ {[%clk 0:00:15]}  Kc7 {[%clk 0:00:06]} 53. Qa5+ {[%clk 0:00:14]}  Kb7 {[%clk 0:00:06]} 54. Qb5+ {[%clk 0:00:13]}  Kc7 {[%clk 0:00:06]} 55. Qxa4 {[%clk 0:00:14]}  Qd2+ {[%clk 0:00:05]} 56. Qc2 {[%clk 0:00:14]}  Qxb4+ {[%clk 0:00:05]} 57. Ka2 {[%clk 0:00:14]}  Qa5+ {[%clk 0:00:05]} 58. Kb1 {[%clk 0:00:15]}  Qb6+ {[%clk 0:00:05]} 59. Kc1 {[%clk 0:00:14]}  Qe3+ {[%clk 0:00:05]} 60. Kb1 {[%clk 0:00:14]}  Qe1+ {[%clk 0:00:05]} 61. Kb2 {[%clk 0:00:14]}  Qxh4 {[%clk 0:00:05]} 62. Kb3 {[%clk 0:00:09]}  Qg3+ {[%clk 0:00:05]} 63. Kb4 {[%clk 0:00:09]}  Qe1+ {[%clk 0:00:06]} 64. Kb5 {[%clk 0:00:08]}  Qe8+ {[%clk 0:00:06]} 65. Kb4 {[%clk 0:00:08]}  Qe7+ {[%clk 0:00:03]} 66. c5 {[%clk 0:00:05]}  h4 {[%clk 0:00:03]} 67. Qh2+ {[%clk 0:00:04]}  Kc8 {[%clk 0:00:03]} 68. Qh3+ {[%clk 0:00:05]}  Kb7 {[%clk 0:00:04]} 69. Qh2 {[%clk 0:00:04]}  Ka7 {[%clk 0:00:04]} 70. Kb5 {[%clk 0:00:04]}  Qb7+ {[%clk 0:00:03]} 71. Kc4 {[%clk 0:00:02]}  Qe4+ {[%clk 0:00:04]} 72. Kb5 {[%clk 0:00:03]}  Qe8+ {[%clk 0:00:04]} 73. c6 {[%clk 0:00:03]}  Qb8+ {[%clk 0:00:04]} 74. Qxb8+ {[%clk 0:00:01]}  Kxb8 {[%clk 0:00:05]} 0-1


[Site "https://www.chess.com"]